[Event "Cerrado Blitz Quart 2018"]
[Site "Quart (Valencia), Spain"]
[Date "2018.08.30"]
[Round "9.5"]
[White "Galvan Cipriani, Viviana"]
[Black "Vega Gutierrez, Sabrina"]
[Result "0-1"]
[TimeControl "7 minutos +3s por jugada"]
[WhiteTitle "WFM"]
[BlackTitle "IM"]
[WhiteFideId "32041144"]
[BlackFideId "2219026"]
[WhiteElo "1948"]
[BlackElo "2188"]

1. c4 {[%clk 00:07:04]} c6 {[%clk 00:07:03]} {[%emt 00:00:04]} 2. Nf3 {[%clk
00:07:04]} {[%emt 00:00:02]} d5 {[%clk 00:07:05]} 3. b3 {[%clk 00:07:06]}
{[%emt 00:00:02]} Nf6 {[%clk 00:07:03]} {[%emt 00:00:05]} 4. g3 {[%clk
00:07:06]} {[%emt 00:00:03]} Bf5 {[%clk 00:07:02]} {[%emt 00:00:04]} 5. Bg2
{[%clk 00:07:06]} {[%emt 00:00:02]} Nbd7 {[%clk 00:07:04]} {[%emt 00:00:01]} 6.
d3 {[%clk 00:07:07]} {[%emt 00:00:02]} h6 {[%clk 00:06:55]} {[%emt 00:00:12]} 7.
Bb2 {[%clk 00:07:08]} {[%emt 00:00:02]} e6 {[%clk 00:06:57]} {[%emt 00:00:01]}
8. O-O {[%clk 00:07:08]} {[%emt 00:00:04]} Be7 {[%clk 00:06:35]} {[%emt
00:00:25]} 9. Nbd2 {[%clk 00:07:08]} {[%emt 00:00:03]} O-O {[%clk 00:06:34]}
{[%emt 00:00:04]} 10. Qc2 {[%clk 00:07:04]} {[%emt 00:00:07]} Bh7 {[%clk
00:06:35]} {[%emt 00:00:03]} 11. Bc3 {[%clk 00:07:04]} {[%emt 00:00:02]} a5
{[%clk 00:06:31]} {[%emt 00:00:07]} 12. a3 {[%clk 00:07:05]} {[%emt 00:00:02]}
b5 {[%clk 00:06:18]} {[%emt 00:00:16]} 13. cxb5 {[%clk 00:07:03]} {[%emt
00:00:06]} cxb5 {[%clk 00:06:19]} {[%emt 00:00:01]} 14. b4 {[%clk 00:07:03]}
{[%emt 00:00:03]} axb4 {[%clk 00:04:50]} {[%emt 00:01:33]} 15. axb4 {[%clk
00:06:49]} {[%emt 00:00:17]} Qc7 {[%clk 00:04:44]} {[%emt 00:00:09]} 16. Qb2
{[%clk 00:06:50]} {[%emt 00:00:02]} Rfc8 {[%clk 00:04:42]} {[%emt 00:00:05]} 17.
Rxa8 {[%clk 00:06:27]} {[%emt 00:00:26]} Rxa8 {[%clk 00:04:44]} 18. Nb3 {[%clk
00:06:28]} {[%emt 00:00:02]} Nb6 {[%clk 00:04:42]} {[%emt 00:00:05]} 19. Be5
{[%clk 00:06:02]} {[%emt 00:00:29]} Qd8 {[%clk 00:04:11]} {[%emt 00:00:34]} 20.
Qd2 {[%clk 00:06:00]} {[%emt 00:00:05]} Ra4 {[%clk 00:03:58]} {[%emt 00:00:16]}
21. Nc5 {[%clk 00:05:54]} {[%emt 00:00:09]} Ra7 {[%clk 00:02:54]} {[%emt
00:01:08]} 22. Rc1 {[%clk 00:05:19]} {[%emt 00:00:38]} Nfd7 {[%clk 00:02:29]}
{[%emt 00:00:28]} 23. Bd4 {[%clk 00:04:53]} {[%emt 00:00:29]} Rc7 {[%clk
00:02:17]} {[%emt 00:00:16]} 24. Nxd7 {[%clk 00:03:40]} {[%emt 00:01:15]} Nxd7
{[%clk 00:02:06]} {[%emt 00:00:14]} 25. Rxc7 {[%clk 00:03:12]} {[%emt
00:00:31]} Qxc7 {[%clk 00:02:08]} {[%emt 00:00:01]} 26. Qb2 {[%clk 00:03:13]}
{[%emt 00:00:02]} f6 {[%clk 00:01:59]} {[%emt 00:00:12]} 27. Bc3 {[%clk
00:03:08]} {[%emt 00:00:07]} Nb6 {[%clk 00:01:57]} {[%emt 00:00:06]} 28. Qd2
{[%clk 00:02:47]} {[%emt 00:00:24]} Na4 {[%clk 00:01:54]} {[%emt 00:00:05]} 29.
Ba1 {[%clk 00:02:35]} {[%emt 00:00:15]} Bg6 {[%clk 00:01:10]} {[%emt 00:00:47]}
30. Nd4 {[%clk 00:02:16]} {[%emt 00:00:21]} Bf7 {[%clk 00:00:39]} {[%emt
00:00:36]} 31. Bh3 {[%clk 00:01:06]} {[%emt 00:01:13]} e5 {[%clk 00:00:25]}
{[%emt 00:00:17]} 32. Nxb5 {[%clk 00:00:21]} {[%emt 00:00:48]} Qb7 {[%clk
00:00:27]} 33. Nc3 {[%clk 00:00:22]} {[%emt 00:00:02]} Bxb4 {[%clk 00:00:25]}
{[%emt 00:00:05]} 34. Qc2 {[%clk 00:00:07]} {[%emt 00:00:17]} Nxc3 {[%clk
00:00:08]} {[%emt 00:00:20]} 35. Bxc3 {[%clk 00:00:08]} {[%emt 00:00:03]} Qc6
{[%clk 00:00:10]} {[%emt 00:00:02]} 36. Qa2 {[%clk 00:00:05]} {[%emt 00:00:06]}
Qxc3 {[%clk 00:00:08]} {[%emt 00:00:04]} 37. Qa8+ {[%clk 00:00:07]} {[%emt
00:00:01]} Bf8 {[%clk 00:00:10]} 38. Kg2 {[%clk 00:00:08]} {[%emt 00:00:03]}
Qd2 {[%clk 00:00:09]} {[%emt 00:00:03]} 39. Bg4 {[%clk 00:00:09]} {[%emt
00:00:02]} h5 {[%clk 00:00:10]} {[%emt 00:00:02]} 40. Bf3 {[%clk 00:00:11]}
{[%emt 00:00:02]} g6 {[%clk 00:00:11]} {[%emt 00:00:02]} 41. Bxd5 {[%clk
00:00:12]} {[%emt 00:00:02]} Qxe2 {[%clk 00:00:05]} {[%emt 00:00:09]} 42. Be4
{[%clk 00:00:12]} {[%emt 00:00:03]} Kg7 {[%clk 00:00:05]} {[%emt 00:00:03]} 43.
Qb7 {[%clk 00:00:12]} {[%emt 00:00:02]} Qa2 {[%clk 00:00:07]} {[%emt 00:00:02]}
44. Qd7 {[%clk 00:00:13]} {[%emt 00:00:02]} Bc5 {[%clk 00:00:07]} {[%emt
00:00:03]} 45. Kh3 {[%clk 00:00:08]} {[%emt 00:00:07]} Qxf2 {[%clk 00:00:05]}
{[%emt 00:00:05]} 46. Bd5 {[%clk 00:00:06]} {[%emt 00:00:05]} Qf5+ {[%clk
00:00:05]} {[%emt 00:00:03]} 47. Qxf5 {[%clk 00:00:06]} {[%emt 00:00:04]} gxf5
{[%clk 00:00:06]} {[%emt 00:00:01]} 48. Bf3 {[%clk 00:00:07]} {[%emt 00:00:02]}
Bg6 {[%clk 00:00:07]} {[%emt 00:00:02]} 49. Kg2 {[%clk 00:00:07]} {[%emt
00:00:03]} e4 {[%clk 00:00:09]} {[%emt 00:00:02]} 50. dxe4 {[%clk 00:00:06]}
{[%emt 00:00:04]} fxe4 {[%clk 00:00:10]} {[%emt 00:00:02]} 51. Be2 {[%clk
00:00:06]} {[%emt 00:00:03]} Kf7 {[%clk 00:00:12]} {[%emt 00:00:01]} 52. h3
{[%clk 00:00:06]} {[%emt 00:00:03]} Ke6 {[%clk 00:00:13]} {[%emt 00:00:02]} 53.
h4 {[%clk 00:00:06]} {[%emt 00:00:03]} Ke5 {[%clk 00:00:14]} {[%emt 00:00:01]}
54. g4 {[%clk 00:00:07]} {[%emt 00:00:02]} hxg4 {[%clk 00:00:15]} {[%emt
00:00:02]} 55. Bxg4 {[%clk 00:00:06]} {[%emt 00:00:04]} f5 {[%clk 00:00:16]}
{[%emt 00:00:02]} 56. Be2 {[%clk 00:00:07]} {[%emt 00:00:03]} f4 {[%clk
00:00:14]} {[%emt 00:00:05]} 57. Kh2 {[%clk 00:00:05]} {[%emt 00:00:05]} f3
{[%clk 00:00:14]} {[%emt 00:00:03]} 58. Bf1 {[%clk 00:00:05]} {[%emt 00:00:03]}
0-1